bitfinex-derivatives/quotes_ETHF0:USTF0_20250627
["timestamp","ask_amount","ask_price","bid_price","bid_amount"]
[1751030821340,0.82363,2427.4,2427.3,6.654]
[1751030821842,4.24483,2427.4,2427.3,6.654]
[1751030822636,5.48035,2427.4,2426.8,49.442]
[1751030822945,3.4212,2427.4,2427.0,0.82376]
[1751030823146,0.82377,2427.0,2426.9,32.98879]
[1751030823446,7.3038884,2427.2,2426.1,9.3640284]
[1751030823640,0.82389,2426.7,2426.4,0.82395]
[1751030823947,1.3349,2427.1,2426.4,0.82395]
[1751030823948,0.82386,2426.8,2426.5,27.77223]
[1751030824140,0.82388,2426.7,2426.5,2.19923]
[1751030824445,0.82388,2426.7,2426.6,32.237]
[1751030824645,0.82381,2426.9,2426.7,0.82385]
[1751030824946,0.8238,2426.9,2426.8,32.233]
[1751030825140,2.8212,2426.9,2426.8,32.233]
[1751030826140,0.82385,2426.8,2426.6,0.82389]
[1751030826346,0.82387,2426.7,2426.5,2.19923]
[1751030826542,0.82386,2426.8,2426.6,33.14489]
[1751030826742,0.82386,2426.8,2426.7,1.3374]
[1751030827137,2.82123,2426.9,2426.7,1.3374]
[1751030827339,2.82123,2426.9,2426.7,2.16127]
[1751030827538,2.82123,2426.9,2426.7,1.3374]
[1751030827846,1.9974,2426.9,2426.8,0.82384]
[1751030828148,3.94207,2427.5,2426.8,31.4943]
[1751030828347,0.82378,2427.0,2426.9,1.3374]
[1751030828551,0.82378,2427.0,2426.9,8.0854]
[1751030828849,0.82378,2427.0,2426.9,6.748]
[1751030829345,0.84125,2427.1,2426.9,7.5718]
[1751030829541,0.0175,2427.1,2427.0,26.44877]
[1751030829746,0.0175,2427.1,2427.0,27.77807]
[1751030830545,0.0171,2427.4,2427.3,0.82364]
[1751030830750,1.20091926,2427.4,2427.3,33.20164]
[1751030831053,1.18381926,2427.4,2427.3,33.20164]
[1751030831549,1.18381926,2427.4,2427.3,34.14154]
[1751030831949,1.9974,2427.6,2427.5,0.8236]
[1751030832150,1.9974,2427.6,2427.5,67.2676]
[1751030832343,1.9974,2427.6,2427.5,72.2676]
[1751030832648,1.9974,2427.6,2427.5,68.7172]
[1751030832946,2.440289,2428.2,2428.0,0.82343]
[1751030833250,1.18494631,2428.1,2428.0,25.682]
[1751030833444,1.21424631,2428.1,2428.0,25.682]
[1751030833645,1.21424631,2428.1,2428.0,26.50543]
[1751030834053,1.21424631,2428.1,2428.0,25.682]
[1751030834347,1.21424631,2428.1,2428.0,26.50543]
[1751030834749,0.0293,2428.1,2428.0,33.8093184]
[1751030834947,0.0293,2428.1,2428.0,35.2589184]
[1751030835145,0.0293,2428.1,2428.0,40.2589184]
[1751030835449,0.2445,2428.5,2428.3,0.82332]
[1751030835651,0.2445,2428.5,2428.4,33.2523]
[1751030835847,0.2445,2428.5,2428.4,33.2513]
[1751030836047,1.43029837,2428.5,2428.4,33.2513]
[1751030836348,1.43029837,2428.5,2428.4,34.6995]
[1751030837250,0.2445,2428.5,2428.4,34.6995]
[1751030837842,0.0218,2428.7,2428.6,0.82321]
[1751030838148,0.84499,2428.7,2428.6,25.662]
[1751030838351,0.0218,2428.7,2428.6,25.662]
[1751030838552,0.84499,2428.7,2428.6,25.662]
[1751030840447,0.0218,2428.7,2428.6,33.7891184]
[1751030841142,0.0784,2428.9,2428.6,40.3428884]
[1751030841445,0.0784,2428.9,2428.8,0.82316]
[1751030841648,0.0784,2428.9,2428.8,33.23816]
[1751030842147,4.42897,2429.6,2428.8,78.215]
[1751030842351,0.9287,2429.5,2428.9,2.24421]
[1751030842653,1.9974,2429.3,2429.2,0.82302]
[1751030842950,1.9974,2429.3,2429.2,33.23002]
[1751030845648,0.8229,2429.6,2429.4,0.82294]
[1751030845852,0.91,2429.6,2429.5,25.681]
[1751030847552,0.0871,2429.6,2429.5,26.50392]
[1751030847848,0.90999,2429.6,2429.5,25.671]
[1751030849354,0.0871,2429.6,2429.5,26.49392]
[1751030849553,0.90999,2429.6,2429.5,26.49392]
[1751030850054,0.0871,2429.6,2429.5,26.49392]
[1751030850652,0.90999,2429.6,2429.5,25.671]
[1751030850854,0.90999,2429.6,2429.5,26.49392]
[1751030851350,0.0871,2429.6,2429.5,32.393]
[1751030851547,0.90999,2429.6,2429.5,32.393]
[1751030852446,5.0871,2429.6,2429.2,6.743]
[1751030852646,0.82299,2429.3,2429.2,32.386]
[1751030853054,2.97629,2429.3,2429.2,32.386]
[1751030853949,4.97369,2429.3,2429.2,32.386]
[1751030854958,3.52089,2429.3,2429.2,32.386]
[1751030855857,0.82316,2428.8,2428.7,40.8]
[1751030856050,0.82316,2428.8,2428.7,73.193]
[1751030856251,0.82316,2428.8,2428.7,47.543]
[1751030856452,0.82323,2428.6,2428.5,1.52616]
[1751030856656,0.82323,2428.6,2428.5,33.97116]
[1751030857556,0.82323,2428.6,2428.5,33.1479]
[1751030857858,0.82323,2428.6,2428.5,33.97116]
[1751030858060,0.82323,2428.6,2428.5,7.4999]
[1751030858252,0.82323,2428.6,2428.5,33.1409]
[1751030858758,0.82323,2428.6,2428.5,33.1379]
[1751030859558,0.82323,2428.6,2428.5,33.25426]
[1751030859958,2.82063,2428.6,2428.5,33.25426]
[1751030860361,1.9974,2428.6,2428.5,40.5581484]
[1751030860556,0.7244,2429.0,2428.7,0.82316]
[1751030860756,0.82313,2428.9,2428.8,25.624]
[1751030860961,0.82313,2428.9,2428.8,25.626]
[1751030861159,1.28003,2428.9,2428.8,25.626]
[1751030861862,0.4569,2428.9,2428.8,25.624]
[1751030862055,1.28003,2428.9,2428.8,25.624]
[1751030862560,1.28003,2428.9,2428.8,26.44716]
[1751030863961,1.28003,2428.9,2428.8,27.82776]
[1751030864768,0.4569,2428.9,2428.8,27.82776]
[1751030865568,1.28003,2428.9,2428.8,27.82776]
[1751030865963,0.4569,2428.9,2428.8,27.82776]
[1751030867165,0.4569,2428.9,2428.8,28.54376]
[1751030867565,2.05731,2429.5,2428.8,33.54374]
[1751030867770,0.82312,2429.0,2428.9,6.797]
[1751030867966,0.82308,2429.1,2428.9,7.62011]
[1751030868176,2.82044,2429.2,2429.0,26.43007]
[1751030868370,0.82304,2429.2,2429.1,2.15356]
[1751030868564,0.82304,2429.2,2429.1,2.0147]
[1751030868764,2.01385483,2429.2,2429.1,2.0147]
[1751030870385,0.82309,2429.0,2428.9,47.597]
[1751030870676,0.82309,2429.0,2428.9,73.197]
[1751030870876,0.82309,2429.0,2428.9,74.5203]
[1751030871078,0.82309,2429.0,2428.9,75.34343]
[1751030871977,0.82308,2429.1,2429.0,0.82309]
[1751030872174,1.9974,2429.3,2429.0,1.3606]
[1751030872374,2.01621451,2429.2,2429.1,25.595]
[1751030873278,2.01621451,2429.2,2429.1,26.41806]
[1751030873671,4.01361451,2429.2,2429.1,26.41806]
[1751030875981,4.01361451,2429.2,2429.1,25.595]
[1751030876277,4.01361451,2429.2,2429.1,26.41806]
[1751030876474,4.01361451,2429.2,2429.1,27.80466]
[1751030876883,3.19059451,2429.2,2429.1,27.80466]
[1751030877080,1.9974,2429.2,2429.1,27.80466]
[1751030877273,0.82297,2429.4,2429.3,0.82299]
[1751030877474,2.82037,2429.4,2429.3,33.16999]
[1751030877673,4.01478032,2429.4,2429.3,33.16999]
[1751030877877,4.01478032,2429.4,2429.3,34.55659]
[1751030878281,4.01478032,2429.4,2429.3,33.7336]
[1751030878480,4.01478032,2429.4,2429.3,34.55659]
[1751030879383,4.01478032,2429.4,2429.3,33.7336]
[1751030879677,4.01478032,2429.4,2429.3,34.55659]
[1751030880179,4.01478032,2429.4,2428.9,50.1616484]
[1751030880180,3.19181032,2429.4,2428.9,40.8]
[1751030880379,7.3038884,2429.1,2427.8,6.797]
[1751030880581,0.82346,2427.9,2427.8,6.797]
[1751030880785,2.05859,2428.0,2427.2,47.597]
[1751030880979,0.82367,2427.3,2427.2,6.797]
[1751030881175,7.3038884,2427.5,2427.2,32.47]
[1751030881491,0.8238,2426.9,2426.8,5.72427752]
[1751030881785,7.3038884,2427.3,2426.9,6.797]
[1751030881988,0.82374,2427.1,2427.0,25.675]
[1751030882485,0.82367,2427.3,2427.0,26.49875]
[1751030882680,1.376,2427.4,2426.7,0.6813]
[1751030882885,0.82371,2427.2,2426.9,0.82379]
[1751030883076,0.82368,2427.3,2427.0,26.49277]
[1751030883781,1.9974,2427.4,2427.0,25.669]
[1751030884287,0.82372,2427.2,2427.0,25.669]
[1751030884483,0.82368,2427.3,2427.0,26.49277]
[1751030884686,0.82368,2427.3,2427.0,27.82807]
[1751030884881,2.82105,2427.4,2427.1,0.82371]
[1751030885078,1.9974,2427.4,2427.3,0.82367]
[1751030885381,1.376,2427.7,2427.2,33.8083]
[1751030885583,0.4396,2427.3,2427.2,34.632]
[1751030885782,0.4396,2427.3,2427.2,33.2967]
[1751030886182,0.4437,2427.4,2427.3,0.82367]
[1751030886785,0.0287,2427.7,2427.6,0.82355]
[1751030886991,0.0287,2427.7,2427.6,32.47]
[1751030887581,0.85223,2427.7,2427.6,32.47]
[1751030887790,0.0287,2427.7,2427.6,32.47]
[1751030887987,0.85223,2427.7,2427.6,32.47]
[1751030888288,0.82357,2427.6,2427.5,25.665]
[1751030888593,0.82363,2427.4,2427.3,6.803]
[1751030888788,0.82363,2427.4,2427.3,32.468]
[1751030891290,0.82362,2427.5,2427.3,33.29167]
[1751030891796,2.82098,2427.6,2427.4,0.82363]
[1751030892092,0.82358,2427.6,2427.5,26.4776]
[1751030892391,0.82355,2427.7,2427.5,26.4776]
[1751030892596,1.50002,2427.8,2427.6,0.82357]
[1751030892892,1.5,2427.8,2427.7,25.647]
[1751030893092,1.5,2427.8,2427.7,32.451]
[1751030893290,3.4974,2427.8,2427.7,32.451]
[1751030894597,2.6739,2427.8,2427.7,33.27453]
[1751030894996,3.4974,2427.8,2427.7,33.27453]
[1751030895399,2.6739,2427.8,2427.7,33.27453]
[1751030895601,3.4974,2427.8,2427.7,33.27453]
[1751030896300,2.6739,2427.8,2427.7,33.27453]
[1751030896600,3.4974,2427.8,2427.7,33.27453]
[1751030896801,1.9974,2427.8,2427.7,33.27453]
[1751030898700,2.8209,2427.8,2427.7,33.27453]
[1751030899003,1.9974,2427.8,2427.7,33.27453]
[1751030901210,2.8209,2427.8,2427.7,32.451]
[1751030902013,2.8209,2427.8,2427.7,33.27453]
[1751030902510,2.8209,2427.8,2427.7,0.82353]
[1751030902712,1.9974,2427.8,2427.7,33.22553]
[1751030903010,6.9974,2427.8,2425.9,5.72427752]
[1751030903313,9.3628184,2427.6,2427.0,0.82375]
[1751030903512,0.8237,2427.2,2427.1,25.592]
[1751030904215,2.132,2427.5,2427.1,25.856]
[1751030904401,0.82372,2427.2,2427.1,25.856]
[1751030904601,2.132,2427.5,2427.1,25.856]
[1751030904802,0.8237,2427.2,2427.0,0.82375]
[1751030905004,0.8237,2427.2,2427.1,25.852]
[1751030905711,0.82374,2427.1,2427.0,6.805]
[1751030905912,0.82374,2427.1,2427.0,32.658]
[1751030906807,0.8237,2427.3,2427.1,0.82372]
[1751030907110,0.8237,2427.3,2427.2,25.853]
[1751030907505,2.01430898,2427.3,2427.2,25.853]
[1751030907911,7.01430898,2427.3,2427.2,25.853]
[1751030908302,0.82394,2426.5,2426.4,1.3746]
[1751030908507,0.82392,2426.6,2426.4,6.805]
[1751030908707,0.82391,2426.6,2426.5,25.834]
[1751030910911,0.82394,2426.5,2426.4,32.632]
[1751030911210,0.82394,2426.5,2426.4,33.45597]
[1751030911413,3.117689,2427.1,2426.4,41.9957984]
[1751030911607,1.50117,2427.1,2426.9,0.82378]
[1751030911801,1.19335204,2427.0,2426.9,26.75678]
[1751030912006,2.01712204,2427.0,2426.9,25.933]
[1751030912206,1.22275204,2427.0,2426.9,26.7568]
[1751030913508,1.22275204,2427.0,2426.9,28.0891]
[1751030914007,0.0294,2427.0,2426.9,28.0891]
[1751030914210,0.85317,2427.0,2426.9,28.0891]
[1751030914515,0.85317,2427.0,2426.9,25.933]
[1751030916823,0.85317,2427.0,2426.9,26.7568]
[1751030917120,2.04580392,2427.0,2426.9,25.933]
[1751030917322,2.04580392,2427.0,2426.9,26.7568]
[1751030917524,0.0294,2427.0,2426.9,26.7568]
[1751030917819,0.85317,2427.0,2426.9,26.7568]
[1751030918409,0.0294,2427.0,2426.9,26.7568]
[1751030918617,0.0294,2427.0,2426.9,28.1619]
[1751030919816,0.85317,2427.0,2426.9,25.933]
[1751030920823,0.0294,2427.0,2426.9,26.7568]
[1751030921014,0.0294,2427.0,2426.9,28.1347]
[1751030921209,0.7187,2427.5,2427.0,2.05942]
[1751030921419,1.19256629,2427.4,2427.3,0.82367]
[1751030921620,1.19256629,2427.4,2427.3,33.62567]
[1751030921818,3.18996629,2427.4,2427.3,33.62567]
[1751030922322,2.05921,2427.3,2425.1,4.12198]
[1751030922516,2.05969,2426.7,2425.9,2.20202]
[1751030922714,0.82408,2426.1,2426.0,26.355]
[1751030922925,0.82407,2426.2,2426.0,26.355]
[1751030923220,0.82408,2426.1,2426.0,33.291]
[1751030923420,0.82408,2426.1,2425.9,1.3779]
[1751030923628,0.82408,2426.1,2426.0,33.284]
[1751030924016,0.82408,2426.1,2425.9,1.3779]
[1751030924319,0.82408,2426.1,2426.0,33.276]
[1751030924515,1.9974,2426.4,2425.9,1.3779]
[1751030924516,0.82411,2426.0,2425.9,1.3779]
[1751030924822,0.8241,2426.1,2425.9,34.6459]
[1751030925022,1.372,2426.3,2425.9,35.47003]
[1751030925321,0.82408,2426.1,2425.9,35.47003]
[1751030925624,0.82408,2426.1,2426.0,0.82411]
[1751030925828,0.82408,2426.1,2425.9,35.47003]
[1751030926918,0.82406,2426.2,2426.0,0.82411]
[1751030927218,0.82404,2426.2,2426.1,26.323]
[1751030927422,7.3038884,2426.2,2425.7,6.936]
[1751030927620,0.82414,2426.0,2425.9,26.303]
[1751030928519,1.9974,2426.2,2425.9,26.303]
[1751030928720,0.82411,2426.0,2425.9,26.303]
[1751030930524,2.8215,2426.1,2425.9,26.303]
[1751030930713,1.9974,2426.1,2426.0,0.82411]
[1751030931021,1.3389,2426.9,2426.0,8.6837884]
[1751030931326,1.9974,2426.2,2426.1,7.6539]
[1751030931518,1.9974,2426.2,2426.1,9.85788]
[1751030932420,2.82144,2426.2,2426.1,6.937]
[1751030933220,0.82411,2426.0,2425.8,1.50266]
[1751030933529,0.8241,2426.1,2425.9,34.04414]
[1751030933826,0.82411,2426.0,2425.9,34.04414]
[1751030934032,0.82411,2426.0,2425.9,35.40434]
[1751030934223,0.82411,2426.0,2425.9,8.2972]
[1751030934426,0.82411,2426.0,2425.9,34.5692]
[1751030935632,0.8243,2425.5,2425.4,6.938]
[1751030935921,4.1061,2425.9,2425.4,33.211]
[1751030936128,0.82428,2425.5,2425.4,33.211]
[1751030936521,2.0457,2425.9,2425.4,34.03531]
[1751030936725,0.82428,2425.5,2425.1,7.3038884]
[1751030937026,1.9974,2426.0,2425.5,0.82427]
[1751030937229,2.06037,2425.9,2425.6,33.228]
[1751030937414,2.6687,2426.0,2425.0,56.7468884]
[1751030937415,6.06985,2426.0,2425.7,33.229]
[1751030937619,0.82418,2425.8,2425.7,33.229]
[1751030938018,0.82418,2425.8,2425.7,6.938]
[1751030938221,4.121,2425.7,2424.2,5.72427752]
[1751030938416,7.3038884,2424.3,2423.4,10.63080112]
[1751030938617,7.3038884,2425.2,2423.0,7.317]
[1751030938618,7.3038884,2424.1,2423.0,7.317]
[1751030938826,2.53221565,2424.0,2423.1,26.763]
[1751030939020,8.49530405,2423.9,2423.2,34.077]
[1751030939221,7.3038884,2423.5,2422.8,26.759]
[1751030939421,0.82503,2423.3,2422.9,0.82515]
[1751030939724,0.825,2423.4,2423.0,0.82511]
[1751030939919,0.825,2423.4,2423.1,34.135]
[1751030940120,1.9974,2423.6,2422.3,0.07183159]
[1751030940324,1.9974,2423.6,2422.4,8.33766054]
[1751030940325,1.339,2423.5,2422.4,8.33766054]
[1751030940635,1.9974,2423.6,2422.5,34.154]
[1751030941025,1.9974,2423.6,2423.0,0.82511]
[1751030941223,1.9974,2423.6,2423.1,34.164]
[1751030941419,2.440289,2424.5,2423.5,2.0624]
[1751030941725,9.58764249,2424.4,2423.4,0.696]
[1751030942031,1.94870565,2424.3,2423.5,34.268]
[1751030942222,0.82453,2424.8,2423.7,2.06222]
[1751030942423,1.2520533,2424.7,2423.9,8.33766054]
[1751030942623,2.0191,2424.9,2424.0,36.34797]
[1751030942833,1.25061644,2424.8,2424.0,36.34797]
[1751030943030,1.25061644,2424.7,2424.4,0.82465]
[1751030943328,1.25061644,2424.7,2424.5,34.283]
[1751030943518,2.440289,2425.3,2424.6,7.319]
[1751030943720,1.24968274,2425.2,2425.1,0.82442]
[1751030943932,1.24968274,2425.2,2425.1,27.78542]
[1751030944139,0.7189,2425.7,2425.5,0.82427]
[1751030944334,1.24925701,2425.6,2425.5,27.78326]
[1751030944837,2.0393,2426.2,2425.6,0.82422]
[1751030945135,1.25022504,2426.1,2425.8,0.82416]
[1751030945430,1.25022504,2426.0,2425.9,34.287]
[1751030945827,1.25022504,2426.1,2425.9,34.287]
[1751030946426,2.07430504,2426.1,2425.9,34.287]
[1751030946733,1.25022504,2426.0,2425.9,34.287]
[1751030946944,1.25022504,2426.0,2425.5,40.8]
[1751030947233,0.82415,2425.9,2425.5,0.82425]
[1751030947421,1.4313,2425.8,2425.6,34.254]
[1751030947625,3.4213,2425.8,2425.6,34.254]
[1751030947832,3.4213,2425.8,2425.7,0.82421]
[1751030947833,1.99,2425.8,2425.7,0.82421]
[1751030949527,1.99,2425.8,2425.6,34.254]
[1751030950528,1.99,2425.8,2425.5,0.82425]
[1751030950834,1.99,2425.8,2425.6,34.196]
[1751030951035,1.99,2425.8,2425.6,35.02024]
[1751030951234,1.99,2425.8,2425.7,26.877]
[1751030951431,1.99,2425.8,2425.7,27.70121]
[1751030951636,1.99,2425.8,2425.7,29.06441]
[1751030952238,3.2412978,2425.8,2425.7,29.06441]
[1751030952535,1.99,2425.8,2425.7,29.06441]
[1751030953540,1.99,2425.8,2425.7,42.40207054]
[1751030953735,0.82403,2426.3,2426.1,0.82407]
[1751030954034,2.07620955,2426.2,2426.1,7.319]
[1751030954241,2.07620955,2426.2,2426.1,34.181]
[1751030954429,3.24216955,2426.2,2426.1,34.181]
[1751030954842,3.24216955,2426.2,2426.1,35.00508]
[1751030955837,4.06620955,2426.2,2426.1,34.181]
[1751030956753,3.24216955,2426.2,2426.1,35.00508]
[1751030956954,1.99,2426.2,2426.1,34.181]
[1751030957451,1.99,2426.2,2426.1,35.00508]
[1751030957953,13.83640835,2427.0,2426.1,34.181]
[1751030958150,1.99,2426.3,2426.2,2.20624]
[1751030958354,1.99,2426.3,2426.2,29.01424]
[1751030958654,0.82386,2426.8,2426.6,0.82391]
[1751030958847,0.82386,2426.8,2426.7,26.807]
[1751030959048,2.07695591,2426.9,2426.7,27.63087]
[1751030959251,1.25312591,2426.8,2426.7,27.63087]
[1751030959451,3.24312591,2426.8,2426.7,27.63087]
[1751030960250,1.99,2426.8,2426.7,27.63087]
[1751030960548,1.99,2426.8,2426.7,29.09527]
[1751030965362,1.99,2426.8,2426.7,29.81007]
[1751030965659,0.82369,2427.3,2427.1,0.82372]
[1751030965854,0.82369,2427.3,2427.2,26.746]
[1751030966250,4.08335578,2427.3,2427.2,27.5697]
[1751030966762,4.08335578,2427.3,2427.2,26.746]
[1751030966763,4.08333578,2427.3,2427.2,26.746]
[1751030967156,4.08333578,2427.3,2427.2,27.5697]
[1751030967355,4.08333578,2427.3,2427.2,34.029]
[1751030968758,0.82372,2427.2,2426.8,2.05957]
[1751030968961,0.82372,2427.2,2427.1,0.82371]
[1751030969160,1.2683176,2427.2,2427.1,27.50571]
[1751030970266,2.81368,2427.3,2427.2,0.8237]
[1751030970466,4.08330612,2427.3,2427.2,0.8237]
[1751030970862,1.99,2427.3,2427.2,0.8237]
[1751030971367,2.81367,2427.3,2427.2,0.8237]
[1751030971553,4.08500396,2427.3,2427.2,0.8237]
[1751030971965,4.08500396,2427.3,2427.2,34.8567]
[1751030972163,3.26133396,2427.3,2427.2,34.8567]
[1751030972362,4.08500396,2427.3,2427.2,34.8567]
[1751030972952,3.26133396,2427.3,2427.2,34.8567]
[1751030973353,3.26402172,2427.3,2427.2,34.8567]
[1751030974353,0.82381,2426.9,2426.8,0.82383]
[1751030974558,0.82381,2426.9,2426.8,26.618]
[1751030975253,0.6808,2427.0,2426.4,8.0721]
[1751030975565,0.82389,2426.7,2426.6,0.8239]
[1751030975764,0.82386,2426.8,2426.6,0.8239]
[1751030975962,0.6808,2427.0,2426.7,26.644]
[1751030976162,0.82378,2427.0,2426.9,0.82379]
[1751030976361,0.82377,2427.0,2426.9,34.88179]
[1751030976563,0.82376,2427.1,2427.0,0.82376]
[1751030976760,0.82376,2427.1,2427.0,27.48276]
[1751030976962,0.8238,2427.0,2426.9,0.82379]
[1751030977166,0.8238,2427.0,2426.9,34.059]
[1751030977665,0.8238,2427.0,2426.9,34.8828]
[1751030978168,0.82376,2427.1,2427.0,0.82377]
[1751030978359,0.82377,2427.0,2426.8,1.3432]
[1751030978560,0.82377,2427.0,2426.9,34.027]
[1751030978760,1.99,2427.3,2426.9,26.627]
[1751030978761,2.05926,2427.2,2426.9,26.627]
[1751030978963,0.82377,2427.0,2426.9,26.627]
[1751030979362,4.08893766,2427.0,2426.9,26.627]
[1751030979862,1.99,2427.0,2426.9,27.4508]
[1751030980369,2.81377,2427.0,2426.9,27.4508]
[1751030981272,1.99,2427.0,2426.9,27.4508]
[1751030981971,2.81377,2427.0,2426.9,27.4508]
[1751030982167,1.99,2427.0,2426.9,27.4508]
[1751030982368,9.04947,2427.0,2426.6,7.4]
[1751030982667,0.82387,2426.7,2426.6,7.4]
[1751030982869,0.82387,2426.7,2426.6,34.022]
[1751030983871,1.3769,2426.7,2426.3,0.82398]
[1751030984078,0.82395,2426.5,2426.4,34.83196]
[1751030984372,0.82395,2426.5,2426.4,34.008]
[1751030984872,0.82395,2426.5,2426.4,34.83197]
[1751030985272,0.82395,2426.5,2426.4,34.008]
[1751030985473,0.82395,2426.5,2426.4,34.004]
[1751030985665,3.43663,2426.7,2426.2,2.24232]
[1751030985865,0.82397,2426.4,2426.3,34.80901]
[1751030986068,1.3769,2426.7,2426.3,33.985]
[1751030986372,0.82395,2426.5,2426.4,0.82395]
[1751030986562,0.82392,2426.6,2426.5,0.82393]
[1751030986766,0.82392,2426.6,2426.5,26.577]
[1751030987069,0.82392,2426.6,2426.5,27.40094]
[1751030987970,0.82392,2426.6,2426.5,26.577]
[1751030988673,0.82397,2426.4,2426.3,2.19589]
[1751030988865,0.82397,2426.4,2426.3,36.15289]
[1751030989065,0.82396,2426.5,2426.4,0.82396]
[1751030990466,1.99,2426.6,2426.3,35.3289]
[1751030990670,1.99,2426.6,2426.5,0.82394]
[1751030990671,2.81393,2426.6,2426.5,0.82394]
[1751030990870,1.99,2426.6,2426.5,27.36394]
[1751030991076,0.82397,2426.4,2426.3,2.0336]
[1751030991274,0.82397,2426.4,2426.3,35.9466]
[1751030991574,0.82397,2426.4,2426.3,36.77061]
[1751030991776,0.82395,2426.5,2426.4,0.82395]
[1751030992069,1.99,2426.7,2426.5,0.82392]
[1751030992275,0.82393,2426.6,2426.5,0.82392]
[1751030992465,0.82393,2426.6,2426.5,34.71992]
[1751030992879,0.82393,2426.6,2426.5,33.896]
[1751030993568,0.82391,2426.6,2426.5,33.879]
[1751030994278,2.81391,2426.6,2426.5,33.879]
[1751030995074,2.81391,2426.6,2426.5,34.70294]
[1751030995374,1.99,2426.6,2426.5,34.70294]
[1751030997077,2.81391,2426.6,2426.5,34.70294]
[1751030997280,2.81391,2426.6,2426.5,33.879]
[1751030998082,2.81391,2426.6,2426.5,34.70294]
[1751030998272,2.81391,2426.6,2426.5,33.879]
[1751030998475,0.82396,2426.5,2426.4,0.82395]
[1751030998676,0.82396,2426.5,2426.4,36.02615]
[1751030999480,1.99,2426.6,2426.4,35.2022]
[1751030999772,0.82394,2426.5,2426.4,7.4]
[1751030999970,0.82394,2426.5,2426.4,33.805]
[1751031000170,0.82397,2426.4,2426.3,0.6617]
[1751031000384,0.82401,2426.3,2426.2,7.235]
[1751031000578,7.30425471,2426.4,2425.8,1.3723]
[1751031000879,0.82411,2426.0,2425.9,26.425]
[1751031001079,0.82414,2425.9,2425.8,7.235]
[1751031001379,0.82421,2425.7,2425.6,26.428]
[1751031001780,1.99,2425.9,2425.6,26.428]
[1751031001977,0.6943,2426.2,2425.7,7.235]
[1751031002179,0.82414,2425.9,2425.8,26.457]
[1751031003374,11.35457471,2426.0,2425.3,0.6741]
[1751031003576,0.82431,2425.4,2425.3,0.6741]
[1751031003773,0.6664,2425.8,2425.3,34.3981]
[1751031003976,0.82418,2425.8,2425.4,1.3802]
[1751031004173,1.99,2425.9,2425.4,1.3802]
[1751031004174,9.36445471,2426.1,2425.4,1.3802]
[1751031004383,0.82428,2425.5,2425.4,1.3802]
[1751031004582,0.0168,2425.6,2425.5,0.82428]
[1751031004773,0.0168,2425.6,2425.5,1.3802]
[1751031005078,8.64435471,2426.1,2425.5,1.3802]
[1751031005079,0.763,2425.7,2425.6,0.82425]
[1751031005376,0.763,2425.7,2425.6,39.57625]
[1751031005580,0.82409,2426.1,2426.0,0.82411]
[1751031005784,0.82409,2426.1,2426.0,34.57211]
[1751031005979,0.261,2426.1,2426.0,34.57211]
[1751031006280,1.08508,2426.1,2426.0,33.748]
[1751031007075,7.56525471,2426.1,2426.0,26.517]
[1751031007274,8.38933471,2426.1,2426.0,26.517]
[1751031007581,1.08508,2426.1,2426.0,26.517]
[1751031009474,0.261,2426.1,2426.0,26.517]
[1751031009678,1.08508,2426.1,2426.0,27.34111]
[1751031009875,1.53919991,2426.1,2426.0,27.34111]
[1751031010180,2.36327991,2426.1,2426.0,26.517]
[1751031010480,0.82434,2425.4,2424.5,49.46]
[1751031010779,0.82444,2425.1,2425.0,0.7264]
[1751031010982,2.06045,2425.8,2425.0,0.7264]
[1751031011180,0.82437,2425.3,2425.1,28.08099]
[1751031011377,0.82437,2425.3,2425.2,8.5611]
[1751031011584,0.84877,2425.3,2425.2,9.38548]
[1751031011971,0.0244,2425.3,2425.2,9.38548]
[1751031012176,0.0244,2425.3,2425.2,21.68973471]
[1751031013379,0.8243,2425.5,2425.3,0.82434]
[1751031013580,0.82427,2425.6,2425.4,36.00821]
[1751031013883,0.82428,2425.5,2425.4,35.1839]
[1751031014274,2.08038,2425.7,2425.2,0.82436]
[1751031014474,2.08038,2425.7,2425.3,33.792]
[1751031014475,0.82431,2425.4,2425.3,33.792]
[1751031014675,0.82431,2425.4,2425.3,35.1749]
[1751031015373,0.844,2425.5,2425.3,35.1749]
[1751031015570,0.0197,2425.5,2425.4,0.82431]
[1751031015785,1e-08,2425.5,2425.4,9.51186471]
[1751031015972,0.2187,2425.6,2425.5,0.82428]
[1751031016169,0.8243,2425.5,2425.3,0.82433]
[1751031016368,0.8243,2425.5,2425.4,33.784]
[1751031016579,2.8172,2425.5,2425.4,33.784]
[1751031016785,1.9929,2425.5,2425.4,35.99161]
[1751031016979,0.7255,2426.1,2425.4,89.6333]
[1751031017179,0.698,2426.4,2425.6,7.30425471]
[1751031017375,1.27754409,2426.3,2425.7,28.6345]
[1751031017683,0.82414,2426.0,2425.9,0.82414]
[1751031017880,2.75797,2426.4,2426.1,0.82406]
[1751031017881,0.698,2426.4,2426.1,0.82406]
[1751031018186,2.10179831,2426.3,2426.2,33.81]
[1751031018578,1.27778831,2426.3,2426.2,33.81]
[1751031019085,2.10179831,2426.3,2426.2,34.63404]